bitfinex/quotes_ETHUSD_20251127
["timestamp","ask_amount","ask_price","bid_price","bid_amount"]
[1764283416856,0.30916443,3024.3,3024.2,6.74461151]
[1764283417546,0.78036443,3024.3,3024.2,6.74461151]
[1764283419561,0.30916443,3024.3,3024.2,6.74461151]
[1764283419863,0.30916443,3024.3,3024.2,6.64532151]
[1764283420046,0.30916443,3024.3,3024.2,6.74461151]
[1764283420248,0.30916443,3024.3,3024.2,4.24125372]
[1764283420249,1.27276443,3024.3,3024.2,4.24125372]
[1764283420763,1.27276443,3024.3,3024.2,3.30665961]
[1764283420968,1.27276443,3024.3,3024.2,3.51565961]
[1764283421448,1.27276443,3024.3,3024.2,3.30665961]
[1764283421629,1.27276443,3024.3,3024.1,3.30676865]
[1764283421630,1.27276443,3024.3,3024.0,9.84688614]
[1764283421826,0.4601,3024.1,3024.0,6.54000784]
[1764283422028,0.76726443,3024.1,3024.0,6.54000784]
[1764283422354,1.25966443,3024.1,3024.0,6.54000784]
[1764283422526,1.25966443,3024.1,3024.0,3.30686311]
[1764283423368,1.25966443,3024.1,3023.9,3.30698714]
[1764283423660,1.21336443,3024.0,3023.9,3.30698714]
[1764283423837,1.21336443,3024.0,3023.7,0.209]
[1764283424032,0.6092,3023.8,3023.7,3.5162064]
[1764283424233,0.91636443,3023.8,3023.7,3.5162064]
[1764283424561,1.40876443,3023.8,3023.7,3.5162064]
[1764283427184,1.40876443,3023.8,3023.7,3.3072064]
[1764283427550,1.40876443,3023.8,3023.5,3.30742516]
[1764283427756,1.40876443,3023.8,3023.0,3.44907755]
[1764283427757,0.4565,3023.6,3023.0,0.14116607]
[1764283427960,0.79956443,3023.7,3023.0,0.14116607]
[1764283427961,0.4565,3023.1,3023.0,0.14116607]
[1764283428197,0.76366443,3023.1,3023.0,0.14116607]
[1764283428496,1.25606443,3023.1,3023.0,0.14116607]
[1764283430354,4.56392721,3023.1,3023.0,0.14116607]
[1764283430554,5.37198794,3023.1,3023.0,0.14116607]
[1764283431081,5.37198794,3023.1,3022.9,0.001]
[1764283431082,5.51315401,3023.1,3022.9,0.001]
[1764283431389,1.35956443,3023.0,3022.9,0.001]
[1764283432491,4.66753664,3023.0,3022.9,0.001]
[1764283433559,5.39313075,3023.0,3022.7,0.001]
[1764283433766,0.7461,3022.8,3022.7,0.001]
[1764283434061,1.16226443,3022.8,3021.5,3.30957284]
[1764283434401,0.6496,3021.6,3021.5,3.30957284]
[1764283434600,0.209,3022.3,3021.3,6.61965988]
[1764283434771,0.4601,3021.6,3021.3,6.61965988]
[1764283435099,0.4601,3021.6,3021.3,4.32692393]
[1764283435399,0.4011,3021.4,3021.3,3.30982637]
[1764283435906,0.4924,3021.7,3021.3,6.61965988]
[1764283436109,0.4924,3021.7,3021.3,3.30982637]
[1764283437101,0.4601,3021.4,3021.3,3.30982637]
[1764283437703,0.9525,3021.4,3021.3,3.30982637]
[1764283438232,0.9525,3021.4,3021.2,3.31592961]
[1764283438405,0.209,3022.3,3021.2,3.31592961]
[1764283438406,0.4011,3021.3,3021.2,3.31592961]
[1764283438606,3.30888156,3022.2,3021.2,3.31592961]
[1764283438806,0.84418816,3022.1,3021.2,3.31592961]
[1764283439203,0.4924,3022.0,3021.2,3.31592961]
[1764283439579,0.4601,3021.3,3021.2,3.31592961]
[1764283439819,1.4867702,3022.0,3021.2,3.31592961]
[1764283439983,0.4924,3021.9,3021.2,3.31592961]
[1764283440177,0.4601,3021.3,3020.2,0.86421551]
[1764283440381,0.4601,3021.3,3018.3,1.41772574]
[1764283440382,0.0008,3019.6,3018.3,1.41772574]
[1764283440696,0.1,3015.3,3014.4,0.00711288]
[1764283440893,0.1,3015.2,3014.4,0.00711288]
[1764283441077,0.30305233,3016.9,3013.8,0.117]
[1764283441078,10.678066,3016.3,3014.3,3.15191568]
[1764283441299,0.99648738,3015.2,3014.0,0.4737]
[1764283441498,0.69824139,3015.1,3014.9,3.15191568]
[1764283441814,0.872679,3015.1,3015.0,0.213]
[1764283442020,1.56639189,3015.1,3015.0,1.3289]
[1764283442223,0.69371289,3015.1,3015.0,1.0659]
[1764283442388,0.69371289,3015.1,3014.1,0.1844]
[1764283442389,1.84413074,3015.1,3014.4,0.213]
[1764283442590,0.86272606,3014.7,3014.1,0.1844]
[1764283442806,1.96002678,3015.1,3014.1,0.6581]
[1764283442807,0.86272606,3014.4,3014.1,0.6581]
[1764283443012,0.86272606,3014.2,3014.1,0.1844]
[1764283443227,1.55643895,3014.2,3014.1,0.1844]
[1764283443512,0.69371289,3014.2,3014.1,1.3289]
[1764283443701,0.69371289,3014.2,3013.8,0.213]
[1764283443901,1.14487898,3013.9,3013.4,0.4737]
[1764283444103,1.71731848,3014.1,3013.8,0.4578]
[1764283444305,2.40404287,3014.0,3013.8,0.4578]
[1764283444616,2.95384157,3014.8,3013.2,3.31873091]
[1764283444617,2.39486203,3013.9,3013.2,3.31873091]
[1764283444782,0.72559411,3014.7,3013.6,0.57299]
[1764283444783,1.14037645,3013.7,3013.6,0.57299]
[1764283444985,0.68424629,3013.7,3013.6,1.191494]
[1764283445190,0.68424629,3013.7,3013.6,0.9315]
[1764283445502,0.85537548,3014.3,3013.7,0.405504]
[1764283445815,0.68242608,3014.2,3013.8,0.6877]
[1764283446016,0.68242608,3014.1,3013.9,0.09929]
[1764283446185,0.85537548,3014.3,3013.9,0.4737]
[1764283446380,0.68230997,3014.2,3014.0,0.214]
[1764283446583,0.85537548,3014.6,3014.3,0.001]
[1764283446787,0.68093072,3014.5,3014.3,0.001]
[1764283446993,0.85537548,3014.6,3014.4,0.214]
[1764283447313,0.68092465,3014.5,3014.3,0.001]
[1764283447514,0.68083609,3014.4,3014.3,0.001]
[1764283447812,0.68083609,3014.4,3014.3,0.4747]
[1764283448012,0.68083609,3014.4,3014.3,0.001]
[1764283448196,0.68083609,3014.4,3014.3,0.215]
[1764283448390,0.85104512,3014.9,3014.3,0.215]
[1764283448596,0.67889574,3014.8,3014.3,3.53244346]
[1764283448790,0.67889574,3014.7,3014.3,3.53244346]
[1764283449099,0.67889574,3014.6,3014.3,3.53244346]
[1764283449302,0.85104512,3014.9,3014.3,6.84996328]
[1764283449594,0.67817183,3014.8,3014.3,0.001]
[1764283449917,0.2344,3014.4,3014.3,0.001]
[1764283450216,0.2344,3014.8,3014.3,0.001]
[1764283450217,0.85104512,3014.8,3014.3,0.001]
[1764283450425,1.57663923,3015.2,3014.4,0.6904]
[1764283450607,1.52871595,3015.1,3014.5,3.31729971]
[1764283450794,0.264,3015.9,3014.6,1.13109811]
[1764283450795,0.85104512,3015.4,3014.6,1.13109811]
[1764283450999,0.01462602,3015.3,3015.0,0.4908]
[1764283451195,0.01462602,3015.3,3014.6,1.60749811]
[1764283451196,0.01462602,3015.3,3015.2,0.6728]
[1764283451610,0.24902602,3015.3,3014.8,0.214]
[1764283451785,0.24902602,3015.3,3014.7,0.182]
[1764283452190,0.24902602,3015.3,3014.7,0.214]
[1764283452387,0.67785869,3015.2,3014.6,0.72559411]
[1764283452602,0.01462602,3015.1,3014.6,0.214]
[1764283454522,0.67820716,3015.0,3014.7,0.214]
[1764283454724,0.69283318,3014.9,3014.7,0.214]
[1764283455023,0.01462602,3014.9,3014.7,0.214]
[1764283455221,0.01462602,3014.9,3014.6,0.214]
[1764283455594,0.01462602,3014.9,3014.5,3.31725206]
[1764283455791,0.01462602,3014.9,3014.6,0.214]
[1764283456008,0.01462602,3014.9,3014.4,3.31738038]
[1764283456009,0.01462602,3014.9,3014.7,0.214]
[1764283456301,0.01462602,3014.9,3014.8,0.4516]
[1764283456492,0.69388927,3014.9,3014.8,0.4516]
[1764283456694,0.69388927,3014.9,3014.8,3.76856961]
[1764283456890,0.69388927,3014.9,3014.8,4.23636961]
[1764283457111,0.01462602,3014.9,3014.8,4.38125614]
[1764283458015,0.01462602,3014.9,3014.8,3.91345614]
[1764283458394,0.69562306,3014.9,3014.8,3.91345614]
[1764283459214,0.69562306,3014.9,3014.8,4.48054614]
[1764283459414,0.69562306,3014.9,3014.8,4.38125614]
[1764283459728,0.69562306,3014.9,3014.8,4.01274614]
[1764283460201,0.69562306,3014.9,3014.8,4.48054614]
[1764283460411,0.69562306,3014.9,3014.8,3.91345614]
[1764283460931,0.69562306,3014.9,3014.8,3.86678911]
[1764283461834,0.69562306,3014.9,3014.8,3.75207911]
[1764283462019,0.69562306,3014.9,3014.8,3.96607911]
[1764283462218,1.54666818,3014.9,3014.8,3.65278911]
[1764283462431,0.69562306,3014.9,3014.8,3.65278911]
[1764283462629,0.69562306,3014.9,3014.8,4.33458911]
[1764283462835,0.69562306,3014.9,3014.8,4.43387911]
[1764283463333,1.55197406,3014.9,3014.8,4.43387911]
[1764283463531,0.69562306,3014.9,3014.8,4.43387911]
[1764283464130,1.55197406,3014.9,3014.8,4.43387911]
[1764283464327,1.83599951,3014.9,3014.8,4.43387911]
[1764283464551,0.69562306,3014.9,3014.8,5.63289799]
[1764283464715,0.69562306,3014.9,3014.8,6.6717821]
[1764283465440,1.55565572,3014.9,3014.8,6.6717821]
[1764283465743,0.01462602,3014.9,3014.8,6.6717821]
[1764283466444,0.70612433,3014.9,3014.8,6.6717821]
[1764283466639,0.01462602,3014.9,3014.8,6.6717821]
[1764283467047,0.01462602,3014.9,3014.8,6.60538578]
[1764283467228,0.70868734,3014.9,3014.8,6.60538578]
[1764283468217,0.002,3015.0,3014.9,0.405504]
[1764283468423,0.002,3015.0,3014.9,2.45698004]
[1764283468647,0.002,3015.0,3014.9,2.67098004]
[1764283469147,0.002,3015.0,3014.9,0.87857652]
[1764283469481,0.30757501,3015.0,3014.9,4.64703611]
[1764283469751,0.87978494,3015.4,3014.9,16.16402431]
[1764283469955,0.87978494,3015.4,3015.3,0.09929]
[1764283470125,0.87978494,3015.4,3015.3,0.96149]
[1764283470319,0.87978494,3015.4,3015.3,1.42929]
[1764283470746,2.3685855,3016.3,3015.3,1.33]
[1764283470747,0.87978494,3015.9,3015.3,1.33]
[1764283470926,0.87978494,3016.0,3015.9,0.09929]
[1764283471334,0.87978494,3016.0,3015.9,3.8666498]
[1764283471739,0.4854,3016.5,3015.9,7.0831196]
[1764283471948,0.4854,3016.5,3015.9,10.3988794]
[1764283472153,0.4854,3016.5,3016.0,0.09929]
[1764283472532,0.25543737,3016.6,3016.1,0.09929]
[1764283472870,0.214,3016.6,3016.1,0.09929]
[1764283473163,0.6994,3016.6,3016.1,0.09929]
[1764283473458,0.6994,3016.6,3015.9,9.9472794]
[1764283473626,0.6994,3016.6,3016.1,0.09929]
[1764283474154,0.4854,3016.6,3015.9,10.4150794]
[1764283474374,0.4854,3016.9,3016.2,0.09929]
[1764283474652,0.04143463,3016.8,3015.9,10.4150794]
[1764283474854,0.04143463,3016.8,3015.9,6.8455196]
[1764283475034,0.4682,3016.0,3015.9,3.5297598]
[1764283475230,0.04143737,3016.6,3015.9,6.8455196]
[1764283475430,0.52683737,3016.6,3015.9,6.8455196]
[1764283475630,0.52683737,3016.6,3015.9,6.6315196]
[1764283475855,0.52683737,3016.6,3015.9,3.3157598]
[1764283475856,0.4358,3016.0,3015.9,3.3157598]
[1764283476056,0.4358,3016.0,3015.7,0.213]
[1764283476256,0.4358,3015.8,3015.6,6.63209348]
[1764283476763,0.1924,3015.9,3015.6,6.63209348]
[1764283476927,0.1924,3015.9,3015.6,3.31600382]
[1764283477133,0.4358,3015.7,3015.6,3.24961498]
[1764283477561,0.9207,3015.7,3015.3,6.63283918]
[1764283477865,0.0048,3015.6,3015.3,6.63283918]
[1764283478759,0.0048,3015.6,3015.3,6.73212918]
[1764283479356,0.0048,3015.6,3015.3,6.63283918]
[1764283480756,0.74560198,3016.4,3015.5,0.467]
[1764283480956,0.74560198,3016.4,3015.6,0.09929]
[1764283481163,0.51134012,3016.4,3015.7,0.09929]
[1764283481455,0.51134012,3016.4,3015.6,6.63217932]
[1764283481662,0.30573807,3016.3,3015.6,10.04755898]
[1764283481954,0.30573807,3016.2,3015.6,10.50405898]
[1764283482127,0.30573807,3016.1,3015.6,10.50405898]
[1764283482332,0.30573807,3016.0,3015.6,10.50405898]
[1764283482528,0.30573807,3015.9,3015.7,0.31229]
[1764283482729,0.30573807,3015.8,3015.7,0.6695]
[1764283482968,0.30573807,3015.8,3015.7,0.76879]
[1764283483136,0.30573807,3015.8,3015.7,1.23579]
[1764283483553,0.30573807,3015.8,3015.7,3.9959797]
[1764283483860,0.30573807,3015.8,3015.7,3.3159797]
[1764283484275,0.75063807,3015.8,3015.7,3.3159797]
[1764283484475,1.22023807,3015.8,3015.4,3.31630961]
[1764283484755,0.4449,3015.5,3015.4,3.31630961]
[1764283484954,0.75063807,3015.5,3015.4,3.31630961]
[1764283485184,1.22023807,3015.5,3015.4,3.31630961]
[1764283485560,1.22023807,3015.5,3015.3,0.001]
[1764283485758,0.75083807,3015.4,3015.3,0.001]
[1764283487095,0.75083807,3015.4,3015.0,9.91801465]
[1764283487288,0.30573807,3015.3,3015.0,9.91801465]
[1764283487489,0.30573807,3015.2,3015.0,6.60126507]
[1764283487690,0.30573807,3015.1,3015.0,3.28451549]
[1764283487877,0.30573807,3015.1,3015.0,3.74101549]
[1764283488084,0.30573807,3015.1,3015.0,3.75151549]
[1764283490667,0.30573807,3015.1,3015.0,3.85080549]
[1764283491903,0.30573807,3015.1,3015.0,4.30730549]
[1764283492274,0.30573807,3015.1,3015.0,3.75151549]
[1764283492485,0.30573807,3015.1,3015.0,3.28451549]
[1764283493009,0.30573807,3015.1,3015.0,3.75151549]
[1764283494192,0.30573807,3015.1,3015.0,4.20801549]
[1764283495207,0.30573807,3015.1,3015.0,3.85080549]
[1764283495382,0.30573807,3015.1,3015.0,3.75151549]
[1764283495577,0.30573807,3015.1,3015.0,3.85080549]
[1764283495778,0.30573807,3015.1,3015.0,3.75151549]
[1764283495998,0.30573807,3015.1,3015.0,3.85080549]
[1764283496376,0.30573807,3015.1,3015.0,4.30730549]
[1764283496600,0.75063807,3015.1,3015.0,3.28451549]
[1764283497105,0.75063807,3015.1,3015.0,3.25131472]
[1764283497590,0.30573807,3015.1,3015.0,3.25131472]
[1764283497772,0.30573807,3015.1,3015.0,3.71831472]
[1764283497978,0.75063807,3015.1,3015.0,3.25131472]
[1764283498199,0.75063807,3015.1,3014.9,0.10029]
[1764283498200,0.4449,3015.1,3014.9,0.001]
[1764283498411,1.22099014,3015.0,3014.9,3.31785906]
[1764283498789,0.75109014,3015.0,3014.9,3.31785906]
[1764283499791,0.4696,3015.3,3014.9,6.63471865]
[1764283499997,0.30627813,3015.2,3014.9,6.63471865]
[1764283500198,0.4451,3015.0,3014.9,3.31785906]
[1764283500606,1.43385632,3015.0,3014.9,0.001]
[1764283500805,0.1,3014.8,3013.6,4.31108962]
[1764283501009,0.30635632,3014.7,3013.6,4.31108962]
[1764283501205,0.30635632,3014.6,3013.6,4.41037962]
[1764283501513,0.30635632,3014.5,3013.6,4.86687962]
[1764283501713,0.30635632,3014.4,3013.6,4.86687962]
[1764283501892,0.1988,3014.9,3013.6,4.76758962]
[1764283501893,0.30635632,3014.3,3013.6,4.76758962]
[1764283502101,0.30635632,3014.2,3013.7,6.6363606]
[1764283502413,0.77530762,3014.7,3013.7,10.4110409]
[1764283502606,0.30540762,3014.6,3014.5,0.001]
[1764283502811,0.30540736,3014.6,3014.5,0.001]
[1764283503021,1.08920736,3014.6,3014.5,0.001]
[1764283506333,1.08920736,3014.6,3013.3,0.213]
[1764283506334,18.947758,3014.5,3012.4,1.78128119]
[1764283506631,0.1,3012.5,3011.1,0.2019]
[1764283506836,0.1,3012.2,3011.1,0.2019]
[1764283507161,0.1,3011.9,3010.7,3.77797353]
[1764283507331,0.1,3011.9,3010.7,10.95404984]
[1764283507636,0.214,3012.1,3011.2,4.31108962]
[1764283508015,0.214,3012.1,3011.3,0.0489]
[1764283508327,0.214,3012.1,3010.7,6.64296022]
[1764283508328,0.1,3011.2,3009.8,4.31108962]
[1764283508649,0.1692,3011.2,3010.2,0.4565]
[1764283509365,0.3605,3010.3,3009.5,4.76758962]
[1764283509637,0.2803,3011.1,3009.5,4.31108962]
[1764283509835,0.2803,3011.1,3009.6,0.4565]
[1764283510043,0.1803,3011.0,3009.6,0.4565]
[1764283510204,0.1803,3011.2,3006.8,0.1831]
[1764283510404,0.90589411,3011.0,3009.3,4.31108962]
[1764283510621,0.1,3010.6,3009.4,0.43110896]
[1764283510821,0.1,3010.6,3009.4,1.06570896]
[1764283511016,0.2803,3010.6,3009.4,1.06570896]
[1764283511241,0.1803,3009.5,3008.5,0.4515]
[1764283511415,0.1,3010.3,3008.2,0.4515]
[1764283511615,0.1,3010.3,3008.7,4.31108962]
[1764283511816,0.1803,3010.2,3008.7,4.31108962]
[1764283512023,0.1,3010.0,3008.8,0.4515]
[1764283512219,0.1803,3010.1,3008.5,4.31108962]
[1764283512523,0.1803,3010.1,3008.8,0.4515]
[1764283513524,0.1803,3010.1,3008.8,0.55079]
[1764283514316,0.1803,3010.1,3008.2,0.455]
[1764283514317,0.1,3009.6,3008.2,0.455]
[1764283514513,0.1,3009.6,3008.3,1.93884523]
[1764283514712,0.1803,3009.5,3008.3,1.93884523]
[1764283515042,0.216,3009.7,3008.4,0.455]
[1764283515043,0.3963,3009.7,3008.4,0.455]
[1764283515610,0.1,3009.6,3008.4,0.455]
[1764283515814,0.3963,3009.7,3008.4,0.455]
[1764283516014,0.2803,3009.6,3008.4,0.65881352]
[1764283516219,0.2803,3009.6,3007.9,0.94159411]
[1764283516220,0.1803,3008.5,3006.4,3.32622249]
[1764283516418,0.3963,3008.4,3007.1,0.1826]
[1764283516724,0.4963,3008.4,3007.1,0.1826]
[1764283516928,0.6766,3008.4,3007.2,4.80595858]
[1764283517129,0.1,3008.1,3007.2,4.77267806]
[1764283517315,0.1803,3008.3,3007.2,4.77267806]
[1764283517530,0.217,3008.6,3007.3,0.455]
[1764283517735,0.1,3008.7,3007.2,0.46158844]
[1764283517948,0.72559411,3009.4,3006.7,4.31108962]
[1764283517949,0.1803,3007.3,3006.7,4.31108962]
[1764283518273,0.1803,3007.3,3006.4,0.1826]
[1764283518560,0.217,3008.0,3006.4,0.1826]
[1764283518561,0.2803,3007.8,3006.7,4.31108962]
[1764283518732,0.217,3008.0,3006.7,4.78769858]
[1764283518929,0.1803,3008.5,3006.8,0.455]
[1764283519129,0.2803,3008.5,3007.2,4.31108962]
[1764283519531,0.1803,3008.5,3007.3,0.73689]
[1764283519730,0.217,3008.7,3007.3,0.6376]
[1764283519927,0.217,3008.7,3007.5,4.31108962]
[1764283520138,0.217,3008.7,3007.3,0.1826]
[1764283520346,0.1,3008.4,3007.3,3.50781893]
[1764283520560,0.1803,3008.6,3007.4,0.455]
[1764283520759,0.317,3008.7,3007.4,0.455]
[1764283521119,0.217,3008.7,3007.6,4.31108962]
[1764283521540,0.1803,3009.3,3007.7,0.455]
[1764283521850,0.04153927,3009.2,3008.1,4.31108962]
[1764283522223,0.04153927,3009.2,3008.3,3.32413655]
[1764283522421,0.04153927,3009.2,3008.3,7.1032731]
[1764283522935,0.04153927,3009.2,3008.5,0.09929]
[1764283523261,0.04153651,3009.4,3008.5,0.09929]
[1764283523445,0.04153651,3009.4,3008.6,4.76608962]
[1764283523823,0.04153651,3009.4,3008.7,0.455]
[1764283524273,0.04153651,3009.4,3008.8,6.6471683]
[1764283524571,0.1803,3009.9,3009.3,0.6739]
[1764283524769,0.04153099,3009.8,3009.3,0.6739]
[1764283525366,0.04153099,3009.8,3009.4,0.455]
[1764283525548,0.1803,3010.1,3009.4,0.455]
[1764283525727,0.0415241,3010.3,3009.7,0.4913]
[1764283525923,0.217,3010.4,3009.7,0.4913]
[1764283526259,0.0415241,3010.3,3009.8,6.64495978]
[1764283526748,0.0415241,3010.3,3009.9,0.455]
[1764283527064,0.0415241,3010.3,3009.9,0.42174058]
[1764283527236,0.0415241,3010.3,3010.2,0.1826]
[1764283527561,0.1068,3010.9,3010.2,0.6739]
[1764283527773,0.04151306,3011.1,3010.2,0.6739]
[1764283527976,0.14831306,3011.1,3010.3,0.09929]
[1764283528505,0.04151306,3011.1,3010.4,6.64363538]
[1764283528820,0.04151444,3011.0,3010.4,6.64363538]
[1764283529028,0.04151168,3011.2,3010.5,0.455]
[1764283529466,0.04151168,3011.2,3010.6,4.31108962]
[1764283529758,0.1068,3011.5,3011.1,0.6739]
[1764283529971,0.04150204,3011.9,3011.1,0.6739]
[1764283530125,0.34155061,3011.9,3011.1,1.1289]
[1764283530333,0.04150204,3011.9,3011.2,0.455]
[1764283530567,0.2136,3012.4,3011.2,0.455]
[1764283530568,0.3415451,3012.3,3011.3,6.64164978]
[1764283530856,0.0414979,3012.2,3011.3,6.64164978]
[1764283531158,0.0414979,3012.2,3011.4,0.55429]
[1764283531363,0.0414979,3012.2,3011.4,0.455]
[1764283532275,0.0414979,3012.2,3011.4,0.87846709]
[1764283532481,0.34154647,3012.2,3011.4,0.672]
[1764283532680,0.0414979,3012.2,3011.5,0.455]
[1764283532845,0.34154647,3012.2,3011.4,6.85842613]
[1764283533050,0.0414979,3012.2,3011.4,6.85842613]
[1764283533369,0.30004857,3012.1,3011.4,6.64142613]
[1764283533674,0.34154923,3012.0,3011.4,6.64142613]
[1764283533878,0.04150066,3012.0,3011.4,6.64142613]
[1764283534053,0.14149653,3012.3,3011.4,6.64142613]
[1764283534253,0.40121789,3012.2,3011.4,6.64142613]
[1764283534474,0.34271717,3012.1,3011.3,6.64164978]
[1764283534674,0.30121789,3012.0,3011.3,6.64164978]
[1764283534876,0.34271993,3011.9,3011.3,6.64164978]
[1764283535081,0.30121789,3011.8,3011.3,6.64164978]
[1764283535310,0.0414979,3012.2,3011.3,6.64164978]
[1764283535582,0.30206935,3012.1,3011.3,6.64164978]
[1764283535784,0.34357001,3012.0,3011.4,0.455]
[1764283535953,0.30206935,3011.9,3011.4,0.455]
[1764283536287,0.30206935,3011.8,3011.4,0.455]
[1764283536487,0.30206935,3011.7,3011.4,0.455]
[1764283536672,0.30206935,3011.6,3011.5,3.41989434]
[1764283536872,0.30206935,3011.6,3011.5,3.32060434]
[1764283537084,0.04149515,3012.4,3011.9,0.09929]
[1764283537289,0.73822109,3012.6,3012.0,0.4913]
[1764283537461,0.6967287,3012.5,3012.0,0.4913]
[1764283537665,0.6967287,3012.5,3012.1,0.1826]
[1764283537865,0.04149239,3012.6,3012.1,0.6376]
[1764283538254,0.04149102,3012.7,3012.1,0.6376]
[1764283538776,0.04149102,3012.7,3012.2,6.63966536]
[1764283539788,0.1068,3012.9,3012.2,6.63966536]
[1764283539992,0.04148964,3012.8,3012.2,6.63966536]
[1764283540284,0.04148964,3012.8,3012.2,7.11356536]
[1764283540674,0.04148964,3012.8,3012.2,7.32956536]
[1764283541054,0.04148964,3012.8,3012.3,0.4739]
[1764283541385,0.04148551,3013.1,3012.4,0.09929]
[1764283541792,0.04148551,3013.1,3012.4,0.4739]
[1764283542465,0.04148551,3013.1,3012.2,10.64939804]
[1764283542661,0.04148551,3013.1,3012.5,6.63900414]
[1764283542861,0.04148551,3013.1,3012.5,6.73829414]
[1764283543177,0.04148275,3013.3,3012.5,10.05779621]
[1764283543690,0.04148275,3013.3,3012.6,0.4739]
[1764283544454,0.04148275,3013.3,3012.5,6.63900414]
[1764283544666,0.04148275,3013.3,3012.6,0.4739]
[1764283544866,0.04148138,3013.4,3012.8,0.09929]
[1764283545070,0.73614531,3013.8,3012.9,0.09929]
[1764283545262,0.04147587,3013.8,3013.1,0.09929]
[1764283545478,0.04147587,3013.8,3013.0,0.4739]
[1764283546035,0.04147725,3013.7,3013.1,0.1922]
[1764283546298,0.2550745,3013.9,3012.8,0.1922]
[1764283546460,0.3550745,3013.9,3012.9,0.216]
[1764283546660,0.3550745,3013.9,3012.9,6.63812272]
[1764283546974,0.2136,3013.8,3012.9,6.63812272]
[1764283547172,0.04147725,3013.7,3012.9,6.63812272]
[1764283547792,0.25507725,3013.7,3012.9,6.63812272]
[1764283548355,0.1,3013.5,3012.9,6.63812272]
[1764283548670,0.04148138,3013.4,3012.9,6.63812272]
[1764283548988,0.04148138,3013.4,3012.8,6.63834306]
[1764283549196,0.04148138,3013.4,3012.8,9.95751459]
[1764283549377,0.34312826,3013.7,3012.8,9.95751459]
[1764283549582,0.30165101,3013.6,3012.8,10.05680459]
[1764283549764,0.30165101,3013.6,3012.9,0.4739]
[1764283549962,0.04148,3013.5,3012.9,0.4739]
[1764283550165,0.34312964,3013.6,3012.9,0.4739]
[1764283550394,0.30165101,3013.5,3013.1,0.09929]
[1764283550687,0.34374959,3013.8,3013.0,0.216]
[1764283550888,0.30226901,3013.7,3013.1,9.95652318]
[1764283551095,0.34374764,3013.6,3013.1,9.95652318]
[1764283551399,0.30226901,3013.5,3013.1,10.52971318]
[1764283551570,0.73784078,3013.9,3013.4,0.4719]
[1764283551771,0.30264426,3013.8,3013.4,0.4719]
[1764283551971,0.34412151,3013.7,3013.4,0.4719]
[1764283552189,0.30264426,3013.6,3013.4,0.4719]
[1764283552394,0.30264426,3013.5,3013.4,0.4719]
[1764283552589,0.30264426,3013.5,3013.4,0.9458]
[1764283552789,0.73941177,3014.1,3013.5,6.63680106]
[1764283552991,0.49701259,3014.0,3013.5,6.63680106]
[1764283553178,0.34441526,3013.9,3013.6,0.4739]
[1764283553379,0.30294076,3013.8,3013.5,9.95520159]
[1764283553589,0.30294076,3013.7,3013.5,6.63680106]
[1764283553794,0.30294076,3013.6,3013.5,3.79230053]
[1764283554277,0.30294076,3013.6,3013.5,4.26420053]
[1764283556076,0.30294076,3013.6,3013.5,3.79030053]
[1764283556488,0.30294076,3013.6,3013.5,4.26420053]
[1764283557977,0.30294076,3013.6,3013.5,4.36349053]
[1764283558303,0.30294076,3013.6,3013.5,4.26420053]
[1764283558503,0.30294076,3013.6,3013.5,4.36349053]
[1764283558904,0.30494076,3013.6,3013.5,4.36349053]
[1764283560412,0.88090656,3014.4,3013.8,0.09929]
[1764283560709,0.70249435,3014.3,3013.8,0.4719]
[1764283560922,0.70249435,3014.2,3014.1,0.09929]
[1764283561083,0.70249435,3014.2,3014.1,3.31773995]
[1764283561280,0.70249435,3014.2,3014.1,4.45573995]
[1764283561504,1.25430011,3014.6,3014.1,11.09121985]
[1764283561808,1.25430011,3014.6,3014.1,10.61731985]
[1764283561809,0.70255294,3014.5,3014.1,10.61731985]
[1764283561999,0.002,3014.6,3014.2,0.57319]
[1764283562200,0.002,3014.6,3014.4,0.4719]
[1764283562778,0.002,3014.6,3014.5,0.4719]
[1764283562979,0.002,3014.6,3014.5,3.88848971]
[1764283563203,0.002,3014.6,3014.5,4.36238971]
[1764283563899,0.002,3014.6,3014.5,4.26309971]
[1764283564603,0.002,3014.6,3014.5,4.36238971]
[1764283564813,0.002,3014.6,3014.5,5.89872993]
[1764283565982,0.002,3014.6,3014.5,5.74943993]
[1764283566203,0.002,3014.6,3014.5,5.84872993]
[1764283567022,0.002,3014.6,3014.5,4.31238971]
[1764283567427,0.002,3014.6,3014.5,4.52738971]
[1764283567826,0.002,3014.6,3014.5,4.93289371]
[1764283568236,0.002,3014.6,3014.5,5.65848782]
[1764283569032,0.002,3015.3,3015.2,3.41581958]
[1764283569330,0.002,3015.3,3015.2,4.57891958]
[1764283569534,0.002,3015.3,3015.2,4.01112958]
[1764283570436,0.5292,3015.3,3015.0,6.63349916]
[1764283570637,0.2612,3015.1,3015.0,3.31674958]
[1764283571144,0.5248,3015.1,3014.3,9.95255946]
[1764283571349,0.06645936,3015.0,3014.4,0.215]
[1764283571645,0.33005936,3015.0,3014.4,0.215]
[1764283571811,0.04145936,3015.0,3014.4,0.215]
[1764283572014,0.04145799,3015.1,3014.4,0.215]
[1764283572226,0.30447225,3015.0,3014.4,0.215]
[1764283572426,0.34593299,3014.9,3014.4,0.215]
[1764283572648,0.30447225,3014.8,3014.3,9.95255946]
[1764283572944,0.30447225,3014.7,3014.3,9.95255946]
[1764283573244,0.30447225,3014.6,3014.3,10.11755946]
[1764283573425,0.30447225,3014.5,3014.3,6.80003964]
[1764283573627,0.30447225,3014.4,3014.3,3.48251982]
[1764283574033,0.30447225,3014.4,3014.3,3.97601982]
[1764283575042,0.1068,3014.9,3014.3,10.61105946]
[1764283575252,0.3047398,3014.8,3014.3,10.61105946]
[1764283575419,0.3047398,3014.7,3014.3,10.61105946]
[1764283575625,0.3047398,3014.6,3014.3,10.61105946]
[1764283575825,0.1068,3014.9,3014.3,10.61105946]
[1764283576033,0.30481446,3014.8,3014.3,10.61105946]
[1764283576229,0.30481446,3014.7,3014.3,10.61105946]
[1764283576547,0.30481446,3014.6,3014.3,10.89585946]
[1764283576727,0.1068,3014.9,3014.3,10.39605946]
[1764283576928,0.30486892,3014.8,3014.3,3.26751982]
[1764283577248,0.30486892,3014.7,3014.3,3.26751982]
[1764283577472,0.002,3014.4,3014.2,6.63525976]